bitfinex/quotes_ETHUSD_20250930
["timestamp","ask_amount","ask_price","bid_price","bid_amount"]
[1759234525223,0.001,4171.1,4171.0,24.24993677]
[1759234525439,0.001,4171.1,4171.0,24.12993677]
[1759234526925,0.001,4171.4,4171.3,2.39733416]
[1759234527110,0.001,4171.4,4171.3,10.71463959]
[1759234527313,0.001,4171.4,4171.3,11.38583959]
[1759234527523,0.001,4171.4,4171.3,25.88583959]
[1759234529030,0.001,4171.4,4171.3,25.98194549]
[1759234534399,0.001,4171.4,4171.3,23.25394549]
[1759234534604,0.001,4171.4,4171.3,24.75554549]
[1759234534828,0.001,4171.4,4171.3,24.42163959]
[1759234535033,0.001,4171.4,4171.3,25.21363959]
[1759234535329,0.001,4171.4,4171.3,25.57143959]
[1759234535531,0.001,4171.4,4171.3,25.33363959]
[1759234536336,0.001,4171.4,4171.3,22.60663959]
[1759234536951,0.001,4171.4,4171.3,17.347]
[1759234536952,0.4727,4171.4,4171.3,17.347]
[1759234537133,0.644,4171.4,4171.3,18.139]
[1759234537322,0.644,4171.4,4171.3,20.53633416]
[1759234537519,0.644,4171.4,4171.3,18.139]
[1759234538152,0.644,4171.4,4171.3,17.347]
[1759234538307,0.644,4171.4,4171.3,14.5]
[1759234538512,3.34559499,4171.4,4171.3,14.5]
[1759234538705,3.34559499,4171.4,4171.3,15.292]
[1759234539344,0.9483183,4171.4,4171.3,14.5]
[1759234539510,3.04127669,4171.4,4171.3,14.5]
[1759234540146,3.04127669,4171.4,4171.3,15.292]
[1759234540846,0.644,4171.4,4171.3,15.292]
[1759234541047,3.04127669,4171.4,4171.3,15.292]
[1759234541955,0.001,4171.4,4171.3,15.292]
[1759234542112,0.001,4171.4,4171.3,19.75281416]
[1759234542313,0.001,4171.4,4171.3,20.18911416]
[1759234542508,0.001,4171.4,4171.3,17.11768]
[1759234542740,0.001,4171.4,4171.3,19.51501416]
[1759234543149,0.001,4171.4,4171.3,19.75441416]
[1759234543932,0.001,4171.4,4171.3,22.48141416]
[1759234544855,0.001,4171.4,4171.3,22.24201416]
[1759234545022,0.001,4171.4,4171.3,18.019]
[1759234545219,0.001,4171.4,4171.3,20.41633416]
[1759234549143,0.001,4171.4,4171.3,18.019]
[1759234549346,0.001,4171.4,4171.3,15.292]
[1759234549551,0.001,4171.4,4171.3,18.019]
[1759234549751,0.6131,4171.4,4171.3,15.292]
[1759234550064,0.6131,4171.4,4171.3,18.019]
[1759234550666,0.4418,4171.4,4171.3,18.019]
[1759234551429,0.4418,4171.4,4171.3,20.41633416]
[1759234551430,0.001,4171.4,4171.3,20.41633416]
[1759234551633,0.001,4171.4,4171.3,20.30037683]
[1759234551865,0.4418,4171.4,4171.3,15.412]
[1759234552067,3.01037669,4171.4,4171.3,14.5]
[1759234552367,0.6131,4171.4,4171.3,14.5]
[1759234553160,3.01037669,4171.4,4171.3,14.5]
[1759234553736,0.001,4171.4,4171.3,15.292]
[1759234554369,0.4418,4171.4,4171.3,15.292]
[1759234554760,0.001,4171.4,4171.3,15.292]
[1759234555261,0.001,4171.4,4171.3,3.519]
[1759234555460,0.001,4171.4,4171.3,4.84625812]
[1759234555640,0.001,4171.4,4171.3,21.71961894]
[1759234560564,0.001,4171.4,4171.3,21.28331894]
[1759234560947,0.001,4171.4,4171.3,18.88598478]
[1759234561168,0.4418,4171.4,4171.3,15.292]
[1759234561372,0.4418,4171.4,4171.3,14.5]
[1759234561569,3.01037669,4171.4,4171.3,14.5]
[1759234562078,0.6131,4171.4,4171.3,14.5]
[1759234562258,3.01037669,4171.4,4171.3,15.292]
[1759234562458,3.01037669,4171.4,4171.3,14.5]
[1759234562762,3.01037669,4171.4,4171.3,15.292]
[1759234566452,3.01037669,4171.4,4171.3,14.5]
[1759234566656,3.01037669,4171.4,4171.3,15.292]
[1759234567389,2.39739163,4171.2,4171.1,0.002]
[1759234567682,2.51739163,4171.2,4171.1,0.002]
[1759234567882,3.64619753,4171.2,4171.1,0.002]
[1759234568187,3.12949163,4171.2,4171.1,0.002]
[1759234568886,2.95819163,4171.2,4171.1,0.002]
[1759234569900,2.51739163,4171.2,4171.1,0.002]
[1759234572260,3.45500573,4171.2,4171.1,0.002]
[1759234572455,3.92310573,4171.2,4171.1,0.002]
[1759234572661,4.09440573,4171.2,4171.1,0.002]
[1759234573263,4.21440573,4171.2,4171.1,0.002]
[1759234573981,3.57500573,4171.2,4171.1,0.002]
[1759234574176,4.04310573,4171.2,4171.1,0.002]
[1759234574388,4.21440573,4171.2,4171.1,0.002]
[1759234574571,4.04310573,4171.2,4171.1,0.002]
[1759234574964,3.57500573,4171.2,4171.1,0.002]
[1759234576394,2.63739163,4171.2,4171.1,0.002]
[1759234578172,3.09849163,4171.2,4171.1,0.002]
[1759234578377,5.82549163,4171.2,4171.1,0.002]
[1759234580004,5.36439163,4171.2,4171.1,0.002]
[1759234581205,5.82549163,4171.2,4171.1,0.002]
[1759234582831,5.99679163,4171.2,4171.1,0.002]
[1759234584196,5.82549163,4171.2,4171.1,0.002]
[1759234584603,5.36439163,4171.2,4171.1,0.002]
[1759234585500,5.36439163,4171.2,4171.1,0.2277]
[1759234586624,5.36439163,4171.2,4171.1,0.002]
[1759234587912,5.36439163,4171.2,4171.1,0.2277]
[1759234588416,5.36439163,4171.2,4171.1,0.6884]
[1759234588734,5.36439163,4171.2,4171.1,0.002]
[1759234592024,0.24,4171.2,4171.1,1.4804]
[1759234592611,2.63739163,4171.2,4171.1,1.4804]
[1759234593947,0.24,4171.2,4171.1,1.4804]
[1759234594144,0.12,4171.2,4171.1,1.4804]
[1759234595105,0.12,4171.2,4171.1,15.9804]
[1759234596263,0.121,4171.2,4171.1,15.9804]
[1759234596633,2.51839163,4171.2,4171.1,15.9804]
[1759234596834,2.51839163,4171.2,4171.1,15.5197]
[1759234597136,0.121,4171.2,4171.1,15.5197]
[1759234598265,0.121,4171.2,4171.1,15.9804]
[1759234604779,0.121,4171.2,4171.1,15.5197]
[1759234607083,0.121,4171.2,4171.1,20.36826911]
[1759234608190,0.121,4171.2,4171.1,22.76826911]
[1759234609082,0.121,4171.2,4171.1,22.88926911]
[1759234613873,0.121,4171.2,4171.1,19.80486911]
[1759234614043,0.121,4171.2,4171.1,22.53186911]
[1759234614245,0.121,4171.2,4171.1,21.73986911]
[1759234614487,0.121,4171.2,4171.1,22.18936911]
[1759234616600,0.121,4171.2,4171.1,22.98136911]
[1759234616801,0.121,4171.2,4171.1,25.38136911]
[1759234617325,0.121,4171.2,4171.1,24.93186911]
[1759234617622,0.121,4171.2,4171.1,25.38136911]
[1759234620423,0.001,4171.4,4171.3,5.58933416]
[1759234620584,0.001,4171.4,4171.3,8.31633416]
[1759234620787,0.001,4171.4,4171.3,8.99763416]
[1759234621122,0.001,4171.4,4171.3,23.59374191]
[1759234623936,0.001,4171.4,4171.3,22.93533416]
[1759234624229,0.001,4171.4,4171.3,23.68580337]
[1759234624831,0.001,4171.4,4171.3,20.95980337]
[1759234625133,0.6184,4171.4,4171.3,18.09646921]
[1759234625310,0.4471,4171.4,4171.3,20.49380337]
[1759234625911,0.4471,4171.4,4171.3,21.28580337]
[1759234628951,0.001,4171.4,4171.3,21.28580337]
[1759234630825,0.001,4171.4,4171.3,21.51760337]
[1759234631036,0.001,4171.4,4171.3,21.96710337]
[1759234631407,0.001,4171.4,4171.3,24.36710337]
[1759234632440,0.001,4171.4,4171.3,24.46321112]
[1759234634831,0.001,4171.6,4171.5,3.18921922]
[1759234635031,0.001,4171.6,4171.5,10.22081141]
[1759234635238,0.001,4171.6,4171.5,10.90163922]
[1759234635438,0.001,4171.6,4171.5,25.40163922]
[1759234641259,0.001,4171.9,4171.8,3.18904683]
[1759234641466,0.001,4171.9,4171.8,8.45901729]
[1759234641754,0.001,4171.9,4171.8,10.46092996]
[1759234641947,0.001,4171.9,4171.8,25.05701786]
[1759234642639,0.001,4171.9,4171.8,24.62181786]
[1759234642954,0.001,4171.9,4171.8,25.05701786]
[1759234646439,0.001,4171.9,4171.8,25.05601786]
[1759234646853,0.001,4171.9,4171.8,24.62081786]
[1759234648281,0.001,4171.9,4171.8,25.05601786]
[1759234653094,1e-08,4172.1,4172.0,5.58893192]
[1759234653303,1e-08,4172.1,4172.0,9.36035422]
[1759234653594,1e-08,4172.1,4172.0,10.03535422]
[1759234653782,1e-08,4172.1,4172.0,24.63143565]
[1759234654173,1e-08,4172.1,4172.0,25.11456621]
[1759234655799,1e-08,4172.1,4172.0,22.38956621]
[1759234659171,1e-08,4172.1,4172.0,21.95436621]
[1759234659370,1e-08,4172.1,4172.0,21.71456621]
[1759234660812,0.43090001,4172.1,4172.0,21.71456621]
[1759234662113,1e-08,4172.1,4172.0,21.71456621]
[1759234666519,1e-08,4172.1,4172.0,21.71656621]
[1759234666720,1e-08,4172.1,4172.0,22.38306621]
[1759234667828,0.001,4172.3,4172.2,3.18881702]
[1759234668127,0.001,4172.3,4172.2,4.05928623]
[1759234668526,0.001,4172.3,4172.2,18.65536166]
[1759234669408,0.6125,4172.3,4172.2,21.05536166]
[1759234671211,0.4412,4172.3,4172.2,21.05536166]
[1759234671535,0.001,4172.3,4172.2,21.05536166]
[1759234673538,0.6125,4172.3,4172.2,21.05536166]
[1759234674437,0.4412,4172.3,4172.2,21.05536166]
[1759234676524,0.001,4172.3,4172.2,21.05536166]
[1759234680012,0.001,4172.3,4172.2,20.95928623]
[1759234680315,0.6125,4172.3,4172.2,17.01681702]
[1759234681139,0.6125,4172.3,4172.2,14.62]
[1759234681548,0.6125,4172.3,4172.2,15.412]
[1759234681737,0.6125,4172.3,4172.2,14.62]
[1759234681913,0.6125,4172.3,4172.2,15.412]
[1759234682134,0.6125,4172.3,4172.2,14.62]
[1759234682344,3.00925958,4172.3,4172.2,14.62]
[1759234682573,3.00925958,4172.3,4172.2,14.5]
[1759234682966,3.00925958,4172.3,4172.2,15.292]
[1759234683268,3.12925958,4172.3,4172.2,14.5]
[1759234683950,2.39681702,4172.2,4172.1,0.002]
[1759234684144,4.79681702,4172.2,4172.1,0.002]
[1759234684344,7.03436101,4172.2,4172.1,0.002]
[1759234684539,7.55112966,4172.2,4172.1,0.002]
[1759234688042,7.03436101,4172.2,4172.1,0.002]
[1759234688273,5.40831702,4172.2,4172.1,0.002]
[1759234694449,5.52831702,4172.2,4172.1,0.002]
[1759234695179,0.12,4172.2,4172.1,0.002]
[1759234695382,2.51681702,4172.2,4172.1,0.002]
[1759234695586,4.91681702,4172.2,4172.1,0.002]
[1759234696448,5.37511702,4172.2,4172.1,0.002]
[1759234696849,6.34092985,4172.2,4172.1,0.002]
[1759234704787,6.16962985,4172.2,4172.1,0.002]
[1759234705161,6.34092985,4172.2,4172.1,0.002]
[1759234706593,5.71132985,4172.2,4172.1,0.002]
[1759234706764,6.16962985,4172.2,4172.1,0.002]
[1759234707166,6.34092985,4172.2,4172.1,0.002]
[1759234709379,6.85624484,4172.2,4172.1,0.002]
[1759234709666,6.68494484,4172.2,4172.1,0.002]
[1759234710468,6.22664484,4172.2,4172.1,0.002]
[1759234710866,6.22664484,4172.2,4172.1,0.25]
[1759234714518,6.22664484,4172.2,4172.1,0.002]
[1759234717429,8.95264484,4172.2,4172.1,0.002]
[1759234718224,13.64145547,4172.2,4172.1,0.25]
[1759234718395,13.64145547,4172.2,4172.1,0.002]
[1759234720917,13.64245547,4172.2,4172.1,0.002]
[1759234722849,13.64245547,4172.2,4172.1,0.232]
[1759234723026,12.84794264,4172.2,4172.1,0.232]
[1759234723760,10.12194264,4172.2,4172.1,0.002]
[1759234723919,12.84794264,4172.2,4172.1,0.232]
[1759234724119,12.84794264,4172.2,4172.1,0.6639]
[1759234724457,8.15913201,4172.2,4172.1,0.6639]
[1759234727357,8.15913201,4172.2,4172.1,15.1639]
[1759234727519,12.84794264,4172.2,4172.1,14.502]
[1759234730451,8.15913201,4172.2,4172.1,0.6639]
[1759234730950,12.84794264,4172.2,4172.1,14.502]
[1759234731920,12.84794264,4172.2,4172.1,0.002]
[1759234731921,13.28124264,4172.2,4172.1,0.002]
[1759234732153,15.03767054,4172.2,4172.1,0.002]
[1759234732662,14.43307054,4172.2,4172.1,0.002]
[1759234735267,8.15913201,4172.2,4172.1,0.002]
[1759234735471,12.84794264,4172.2,4172.1,0.232]
[1759234735763,12.84794264,4172.2,4172.1,0.002]
[1759234738459,12.84794264,4172.2,4172.1,0.6639]
[1759234738829,12.84794264,4172.2,4172.1,0.232]
[1759234740060,12.84794264,4172.2,4172.1,0.002]
[1759234741963,8.15813201,4172.2,4172.1,0.6639]
[1759234742339,14.33592661,4172.2,4172.1,0.002]
[1759234742540,14.50722661,4172.2,4172.1,0.002]
[1759234748867,13.90262661,4172.2,4172.1,0.002]
[1759234749442,11.17762661,4172.2,4172.1,0.002]
[1759234749641,13.90262661,4172.2,4172.1,0.002]
[1759234749853,13.90262661,4172.2,4172.1,0.232]
[1759234751559,11.17762661,4172.2,4172.1,0.232]
[1759234751950,13.90262661,4172.2,4172.1,0.232]
[1759234752682,10.12194264,4172.2,4172.1,0.232]
[1759234752860,12.84694264,4172.2,4172.1,0.6615]
[1759234755190,12.84694264,4172.2,4172.1,0.002]
[1759234756996,12.84694264,4172.2,4172.1,0.002]
[1759234757764,13.30004264,4172.2,4172.1,0.002]
[1759234758200,13.47134264,4172.2,4172.1,0.002]
[1759234758379,15.05834768,4172.2,4172.1,0.002]
[1759234763094,15.06106605,4172.2,4172.1,0.002]
[1759234766411,15.30046605,4172.2,4172.1,0.002]
[1759234766609,15.12916605,4172.2,4172.1,0.002]
[1759234766814,2.4,4172.1,4171.5,0.002]
[1759234767005,21.2850768,4172.2,4171.5,0.002]
[1759234767006,2.39716176,4171.6,4171.5,0.002]
[1759234767211,8.16019512,4171.6,4171.5,0.002]
[1759234767415,8.88075717,4171.6,4171.5,0.002]
[1759234770113,10.1001678,4171.6,4171.5,0.002]
[1759234770327,12.9451678,4171.6,4171.5,0.2394]
[1759234770501,13.52530506,4171.6,4171.5,0.2394]
[1759234770687,13.52530506,4171.6,4171.5,0.002]
[1759234771118,10.80030506,4171.6,4171.5,0.2394]
[1759234771332,5.85635717,4171.6,4171.5,0.7108]
[1759234772018,8.25635717,4171.6,4171.5,0.2394]
[1759234772725,8.25635717,4171.6,4171.5,0.7108]
[1759234773552,5.53135717,4171.6,4171.5,0.7108]
[1759234773828,5.34116205,4171.6,4171.5,0.7108]
[1759234774518,5.85919541,4171.6,4171.5,0.7108]
[1759234774828,3.13419541,4171.6,4171.5,0.7108]
[1759234775126,3.13419541,4171.6,4171.5,15.2108]
[1759234776025,5.53135717,4171.6,4171.5,15.2108]
[1759234777028,3.13419541,4171.6,4171.5,15.2108]
[1759234777201,0.21616205,4171.6,4171.5,16.0028]
[1759234777408,0.09616205,4171.6,4171.5,17.60328]
[1759234778135,2.725,4172.1,4171.5,5.50049922]
[1759234778307,0.72094501,4171.9,4171.7,0.792]
[1759234778630,0.001,4172.2,4171.9,0.912]
[1759234779129,5.51873177,4172.2,4172.1,0.792]
[1759234779312,5.51873177,4172.2,4172.1,1.5008]
[1759234779513,5.51873177,4172.2,4172.1,16.0008]
[1759234779823,3.12191383,4172.2,4172.1,16.0008]
[1759234781301,5.51873085,4172.2,4172.1,15.5294]
[1759234781499,5.51873085,4172.2,4172.1,16.0008]
[1759234782237,6.03570336,4172.2,4172.1,15.5258]
[1759234782402,5.51873085,4172.2,4172.1,15.5258]
[1759234782601,5.51873085,4172.2,4172.1,1.0258]
[1759234783204,5.51873085,4172.2,4172.1,15.5258]
[1759234783409,0.001,4172.2,4172.1,17.59704]
[1759234783617,0.001,4172.2,4172.1,19.99391447]
[1759234784812,0.001,4172.2,4172.1,22.88553281]
[1759234788446,0.001,4172.2,4172.1,23.00553281]
[1759234793828,0.001,4172.2,4172.1,23.10161101]
[1759234794832,0.001,4172.6,4172.5,3.18864469]
[1759234795027,0.001,4172.6,4172.5,6.47018099]
[1759234795331,0.001,4172.6,4172.5,7.28458099]
[1759234795538,0.001,4172.6,4172.5,21.88065665]
[1759234800362,0.001,4172.7,4172.6,5.58858725]
[1759234800662,1e-08,4173.0,4172.9,5.58841496]
[1759234800844,1e-08,4173.0,4172.9,9.53900816]
[1759234801044,1e-08,4173.0,4172.9,24.73340816]
[1759234801848,1e-08,4173.0,4172.9,21.54980816]
[1759234802061,1e-08,4173.0,4172.9,24.49080816]
[1759234802265,1e-08,4173.0,4172.9,24.72460816]
[1759234802566,1e-08,4173.0,4172.9,25.18520816]
[1759234806677,0.4518,4174.8,4173.0,3.192]
[1759234806877,2.39511404,4175.2,4174.7,0.792]
[1759234807183,2.3950496,4175.3,4174.9,0.792]
[1759234807390,2.4,4175.3,4174.9,0.792]
[1759234807675,0.6231,4175.2,4174.9,0.792]
[1759234807883,3.01825221,4175.1,4174.9,0.792]
[1759234808078,0.6231,4175.0,4174.9,0.792]
[1759234808253,0.6231,4175.0,4174.9,15.292]
[1759234809092,0.6231,4175.0,4174.9,18.014]
[1759234811316,0.4518,4175.0,4174.9,18.014]
[1759234811463,0.84036335,4175.6,4175.0,0.792]
[1759234811464,0.4518,4175.4,4175.0,0.792]
[1759234811666,0.4518,4175.4,4175.2,0.792]
[1759234811888,0.12,4175.6,4175.4,0.792]
[1759234812587,0.6239,4175.5,4175.4,0.792]
[1759234814493,0.12,4175.8,4175.4,0.792]
[1759234814694,0.6239,4175.7,4175.4,0.792]
[1759234814994,2.52,4175.8,4175.6,0.792]
[1759234815402,0.12,4175.8,4175.6,0.792]
[1759234815694,0.6239,4175.7,4175.6,0.792]
[1759234817902,0.6239,4175.7,4175.5,0.792]
[1759234818097,0.1713,4175.7,4175.5,0.792]
[1759234818403,0.4351,4175.6,4175.5,0.792]
[1759234818776,0.12,4175.8,4175.5,0.792]
[1759234818982,0.4351,4175.7,4175.5,0.792]
[1759234819392,2.90955109,4176.2,4175.5,0.792]
[1759234819591,2.9551,4176.0,4175.5,0.792]
[1759234819903,0.6064,4175.9,4175.5,0.792]
[1759234820072,2.5713,4175.9,4175.5,0.792]
[1759234820272,0.6064,4175.8,4175.5,0.792]
[1759234820474,0.4351,4175.7,4175.5,0.792]
[1759234821733,3.035018,4176.0,4175.5,0.792]
[1759234822031,0.4351,4175.9,4175.6,2.721]
[1759234822208,0.4351,4175.9,4175.7,0.792]
[1759234823006,0.12,4176.0,4175.7,0.792]
[1759234823349,0.515018,4176.3,4175.9,0.792]
[1759234823508,0.72024056,4176.6,4176.2,0.792]
[1759234823708,0.4351,4176.8,4176.4,0.792]
[1759234823902,0.6064,4176.7,4176.3,14.5]
[1759234824109,0.6064,4176.6,4176.4,0.792]
[1759234824303,0.6064,4176.5,4176.4,0.792]
[1759234824509,3.00074933,4176.5,4176.4,0.792]
[1759234824949,2.39440666,4176.4,4176.3,14.5]
[1759234825126,3.00080666,4176.4,4176.3,14.5]
[1759234825309,2.39452903,4176.2,4175.9,0.792]
[1759234825518,2.39463601,4176.0,4175.8,2.724]
[1759234825725,0.6064,4175.9,4175.8,2.724]
[1759234825924,0.6064,4175.9,4175.8,17.224]
[1759234826236,3.00109335,4175.9,4175.8,15.292]
[1759234826624,0.6064,4175.9,4175.8,15.292]
[1759234827002,3.00109335,4175.9,4175.8,15.292]
[1759234828548,0.6064,4175.9,4175.8,15.292]
[1759234829515,0.4351,4175.9,4175.8,15.292]
[1759234829716,2.39464117,4176.0,4175.9,0.792]
[1759234829928,2.39473069,4175.9,4175.8,0.792]
[1759234830216,3.00113069,4175.9,4175.8,0.792]
[1759234830417,0.6064,4175.9,4175.8,15.292]
[1759234830618,0.4351,4175.9,4175.8,15.292]
[1759234831245,3.00109335,4175.9,4175.8,15.292]
[1759234831647,2.4,4175.8,4174.7,0.48483364]
[1759234831952,2.39529229,4174.9,4174.2,2.62176826]
[1759234832258,3.00169229,4174.9,4174.8,14.5]
[1759234832624,3.00169229,4174.9,4174.8,15.292]
[1759234833747,2.39542163,4174.7,4173.9,2.39582214]
[1759234833930,2.39539075,4174.7,4174.3,0.12]
[1759234834130,2.39539075,4174.7,4174.5,0.792]
[1759234834330,2.83049075,4174.7,4174.6,15.292]
[1759234834529,0.1713,4174.9,4174.6,15.292]
[1759234834738,0.4351,4174.9,4174.6,15.292]
[1759234835656,2.39534435,4174.8,4174.6,15.292]
[1759234835954,2.843,4175.1,4174.6,15.292]
[1759234836144,2.8304817,4174.7,4174.6,15.292]
[1759234836341,3.0017817,4174.7,4174.6,15.292]
[1759234836856,0.6064,4174.7,4174.6,15.292]
[1759234837058,0.4351,4174.7,4174.6,15.292]
[1759234837753,2.8304817,4174.7,4174.6,14.5]
[1759234837955,8.9608672,4174.7,4174.6,14.5]
[1759234838156,2.39568825,4174.2,4173.9,3.515]
[1759234838547,2.83078825,4174.2,4174.1,0.792]
[1759234839984,0.12,4174.4,4174.1,0.792]
[1759234840163,0.12,4174.4,4174.0,0.792]
[1759234840164,0.5551,4174.4,4174.0,0.792]
[1759234840465,2.39566863,4174.2,4174.0,0.792]
[1759234840767,2.39566863,4174.2,4174.1,15.292]
[1759234840974,3.00206863,4174.2,4174.1,14.5]
[1759234841251,3.12206863,4174.2,4174.1,14.5]
[1759234841820,2.95076863,4174.2,4174.1,14.5]
[1759234842059,0.12,4174.2,4174.1,14.5]
[1759234842360,2.51556479,4174.4,4174.2,0.792]
[1759234842762,2.51556479,4174.4,4174.2,1.0338]
[1759234843476,2.39543287,4174.7,4174.4,0.792]
[1759234843477,2.4,4174.7,4174.4,0.792]
[1759234843834,2.4,4174.7,4174.5,0.2418]
[1759234844057,4.7953821,4174.7,4174.5,0.2418]
[1759234844253,2.39543908,4174.6,4174.5,0.792]
[1759234844940,5.24813908,4174.6,4174.5,15.292]
[1759234845676,4.79543908,4174.6,4174.5,15.292]
[1759234847085,4.79543908,4174.6,4173.5,0.2418]
[1759234847086,4.28581843,4174.6,4173.5,0.2418]
[1759234847382,4.68339536,4174.3,4173.7,2.843]
[1759234847672,2.39576786,4174.1,4173.9,0.792]
[1759234848037,2.39578342,4174.0,4173.9,3.516]
[1759234848240,2.39578342,4174.0,4173.9,0.792]
[1759234848443,8.55376487,4174.0,4173.9,14.5]
[1759234848663,2.4,4173.9,4173.3,2.724]
[1759234848835,2.39611248,4173.5,4173.3,2.724]
[1759234849040,2.39611248,4173.5,4173.4,15.292]
[1759234849345,0.12,4173.7,4173.5,0.792]
[1759234849587,2.4,4173.9,4173.5,1.4626]
[1759234849769,2.4,4173.9,4173.6,0.2418]
[1759234850068,2.39584323,4173.9,4173.7,15.292]
[1759234850239,2.39584323,4173.9,4173.7,15.5338]
[1759234850438,2.51579418,4174.0,4173.7,15.292]
[1759234850671,2.51579418,4174.0,4173.8,0.2418]
[1759234850988,0.12,4174.0,4173.7,15.292]
[1759234851272,2.39640013,4174.7,4174.0,0.792]
[1759234851480,2.39640013,4174.7,4174.2,0.792]
[1759234851765,2.39640013,4174.7,4174.4,0.792]
[1759234851967,2.39544783,4174.6,4174.4,0.792]
[1759234852143,2.39544783,4174.6,4174.5,1.0338]
[1759234852339,0.001,4174.7,4174.6,0.792]
[1759234852539,0.001,4174.7,4174.6,15.9626]
[1759234852969,0.001,4174.7,4174.6,15.5338]
[1759234854078,2.3963817,4174.7,4174.6,15.5338]
[1759234854246,2.3963817,4174.7,4174.6,15.292]
[1759234855346,0.001,4174.7,4174.6,15.292]
[1759234855556,2.3963817,4174.7,4174.6,15.292]
[1759234858188,5.4203817,4174.7,4174.6,14.5]
[1759234858477,6.99448543,4174.7,4174.6,14.5]
[1759234859195,2.39556151,4174.4,4174.2,0.792]
[1759234859358,2.39561124,4174.3,4174.2,0.792]
[1759234859557,2.39561124,4174.3,4174.2,15.292]
[1759234860684,7.40939536,4174.6,4174.2,15.292]
[1759234860985,5.12144935,4174.6,4174.3,0.6706]
[1759234861187,2.51544935,4174.6,4174.4,0.6706]
[1759234861483,2.39551436,4174.5,4174.4,0.4288]
[1759234861665,2.39559569,4174.4,4174.2,18.018]
[1759234861981,2.39559569,4174.4,4174.2,18.2598]
[1759234862386,0.12,4174.6,4174.3,0.2418]
[1759234862582,2.39550837,4174.5,4174.3,0.2418]
[1759234862791,0.12,4174.6,4174.3,0.2418]
[1759234863091,2.39555385,4174.4,4174.3,1.0338]
[1759234864590,2.39550871,4174.5,4174.3,1.0338]
[1759234864785,0.12,4174.6,4174.3,1.0338]
[1759234864995,2.39551428,4174.5,4174.3,1.0338]
[1759234865293,2.39551428,4174.5,4174.3,0.792]
[1759234865464,0.12,4174.6,4174.3,0.792]
[1759234865667,2.91765193,4174.7,4174.5,0.792]
[1759234865866,2.91765193,4174.7,4174.6,1.4626]
[1759234865867,2.401,4174.7,4174.6,1.4626]
[1759234866185,0.001,4174.7,4174.6,1.4626]
[1759234866965,0.001,4174.7,4174.6,4.1886]
[1759234867406,0.001,4174.7,4174.6,3.7598]
[1759234867770,0.001,4174.7,4174.6,18.2598]
[1759234867964,0.001,4174.7,4174.6,18.018]
[1759234868274,0.001,4174.7,4174.6,18.2598]
[1759234868809,0.001,4174.7,4174.6,18.6886]
[1759234868981,0.001,4174.7,4174.6,20.56946]
[1759234869297,0.001,4174.7,4174.6,23.08489908]
[1759234872781,0.001,4174.7,4174.6,25.48489908]
[1759234877605,0.001,4175.2,4175.1,5.58715221]
[1759234877807,0.001,4175.2,4175.1,8.31315221]
[1759234878107,0.001,4175.2,4175.1,10.17089012]
[1759234878322,0.001,4175.2,4175.1,24.67089012]
[1759234885314,0.001,4175.2,4175.1,24.66889012]
[1759234886025,0.001,4175.2,4175.1,26.6278085]
[1759234888725,0.001,4175.2,4175.1,26.6268085]
[1759234889034,0.001,4176.1,4176.0,5.58663601]
[1759234889200,0.001,4176.1,4176.0,9.10777042]
[1759234889533,0.001,4176.1,4176.0,9.77467042]
[1759234889746,0.001,4176.1,4176.0,24.27467042]
[1759234890430,0.001,4176.1,4176.0,23.83527042]
[1759234890636,0.001,4176.1,4176.0,24.27467042]
[1759234891899,0.001,4176.1,4176.0,24.76175183]
[1759234898131,0.001,4176.1,4176.0,24.09685183]
[1759234899026,0.001,4176.1,4176.0,24.44435183]
[1759234900147,0.001,4176.1,4176.0,24.21685183]
[1759234901541,0.001,4176.1,4176.0,24.44435183]
[1759234901932,0.001,4176.1,4176.0,24.21685183]
[1759234902148,0.001,4176.1,4176.0,21.49185183]
[1759234902750,0.469,4176.1,4176.0,24.21585183]
[1759234902937,0.6403,4176.1,4176.0,24.21585183]
[1759234903137,0.001,4176.1,4176.0,24.21585183]
[1759234903722,0.001,4176.1,4176.0,21.49185183]
[1759234903928,0.6403,4176.1,4176.0,24.21585183]
[1759234904154,0.001,4176.1,4176.0,24.21585183]
[1759234904527,0.001,4176.1,4176.0,24.89655183]
[1759234905343,0.001,4176.1,4176.0,24.46175183]
[1759234905655,0.6403,4176.1,4176.0,21.49185183]
[1759234905856,0.6403,4176.1,4176.0,20.22571742]
[1759234906172,0.6403,4176.1,4176.0,21.01771742]
[1759234907038,0.001,4176.1,4176.0,21.01771742]
[1759234907559,0.469,4176.1,4176.0,21.01771742]
[1759234907961,0.001,4176.1,4176.0,21.01771742]
[1759234908467,0.469,4176.1,4176.0,21.01771742]
[1759234909373,0.6403,4176.1,4176.0,21.01771742]
[1759234909771,0.469,4176.1,4176.0,21.01771742]
[1759234910075,0.6403,4176.1,4176.0,21.01771742]
[1759234910939,0.469,4176.1,4176.0,21.01771742]
[1759234912472,0.6403,4176.1,4176.0,21.01771742]
[1759234912681,0.6403,4176.1,4176.0,21.01671742]
[1759234913779,0.6403,4176.1,4176.0,15.89908141]
[1759234913957,0.6403,4176.1,4176.0,18.62208141]
[1759234914157,0.6403,4176.1,4176.0,18.29371742]
[1759234914379,0.6403,4176.1,4176.0,21.01771742]